[Event "Titled Tuesday Blitz March 21 Early 2023"]
[White "Indjic, Aleksandar"]
[Black "Karthik Rajaa"]
[WhiteFideId "911925"]
[BlackFideId "25035215"]
[WhiteElo "2614"]
[BlackElo "2215"]
[Result "1-0"]
[Round "08"]
[TimeControl "180+2"]
[Date "2023.03.21"]
[WhiteClock "0:01:05"]
[BlackClock "0:00:09"]

1. d4 {[%clk 0:03:00]}  Nf6 {[%clk 0:02:59]} 2. c4 {[%clk 0:03:00]}  g6 {[%clk 0:03:00]} 3. Nc3 {[%clk 0:03:00]}  Bg7 {[%clk 0:03:00]} 4. Nf3 {[%clk 0:03:00]}  O-O {[%clk 0:03:00]} 5. h3 {[%clk 0:03:00]}  d6 {[%clk 0:02:55]} 6. g4 {[%clk 0:03:00]}  c5 {[%clk 0:02:50]} 7. d5 {[%clk 0:02:59]}  e6 {[%clk 0:02:45]} 8. Bg2 {[%clk 0:02:59]}  exd5 {[%clk 0:02:44]} 9. cxd5 {[%clk 0:03:00]}  Re8 {[%clk 0:02:37]} 10. Nd2 {[%clk 0:03:00]}  Nbd7 {[%clk 0:02:17]} 11. O-O {[%clk 0:02:58]}  Rb8 {[%clk 0:02:15]} 12. a4 {[%clk 0:02:56]}  a6 {[%clk 0:02:15]} 13. a5 {[%clk 0:02:51]}  b5 {[%clk 0:02:15]} 14. axb6 {[%clk 0:02:51]}  Nxb6 {[%clk 0:02:15]} 15. g5 {[%clk 0:02:51]}  Nfd7 {[%clk 0:02:14]} 16. Nde4 {[%clk 0:02:46]}  Ne5 {[%clk 0:01:54]} 17. Bf4 {[%clk 0:02:42]}  Nbc4 {[%clk 0:01:38]} 18. b3 {[%clk 0:02:40]}  Na5 {[%clk 0:01:31]} 19. Rxa5 {[%clk 0:02:27]}  Qxa5 {[%clk 0:01:29]} 20. Nxd6 {[%clk 0:02:28]}  Rd8 {[%clk 0:01:22]} 21. Nce4 {[%clk 0:02:27]}  Bf5 {[%clk 0:01:18]} 22. Nf6+ {[%clk 0:02:10]}  Bxf6 {[%clk 0:01:12]} 23. gxf6 {[%clk 0:02:11]}  Rxd6 {[%clk 0:00:51]} 24. Bxe5 {[%clk 0:02:09]}  Rbd8 {[%clk 0:00:48]} 25. Qc1 {[%clk 0:01:58]}  Qb6 {[%clk 0:00:39]} 26. Qg5 {[%clk 0:01:55]}  h6 {[%clk 0:00:26]} 27. Qxh6 {[%clk 0:01:52]}  Rxf6 {[%clk 0:00:26]} 28. e4 {[%clk 0:01:48]}  Bc8 {[%clk 0:00:21]} 29. Qh4 {[%clk 0:01:23]}  Rdd6 {[%clk 0:00:17]} 30. Kh2 {[%clk 0:01:14]}  Qd8 {[%clk 0:00:11]} 31. f4 {[%clk 0:01:10]}  Kg7 {[%clk 0:00:09]} 32. Rc1 {[%clk 0:01:05]} 1-0


[Site "https://www.chess.com"]

[Event "Titled Tuesday Blitz March 21 Early 2023"]
[White "Navara, David"]
[Black "Amilal Munkhdalai"]
[WhiteFideId "309095"]
[BlackFideId "4903250"]
[WhiteElo "2675"]
[BlackElo "2293"]
[Result "1-0"]
[Round "08"]
[TimeControl "180+2"]
[Date "2023.03.21"]
[WhiteClock "0:00:09"]
[BlackClock "0:01:08"]

1. Nf3 {[%clk 0:03:00]}  Nf6 {[%clk 0:02:59]} 2. c4 {[%clk 0:03:00]}  e6 {[%clk 0:02:59]} 3. e3 {[%clk 0:03:00]}  b6 {[%clk 0:02:57]} 4. b3 {[%clk 0:02:58]}  Bb7 {[%clk 0:02:57]} 5. Bb2 {[%clk 0:02:59]}  Be7 {[%clk 0:02:58]} 6. Nc3 {[%clk 0:02:59]}  O-O {[%clk 0:02:58]} 7. Qc2 {[%clk 0:02:56]}  d5 {[%clk 0:02:58]} 8. cxd5 {[%clk 0:02:57]}  Nxd5 {[%clk 0:02:58]} 9. a3 {[%clk 0:02:48]}  Nxc3 {[%clk 0:02:54]} 10. Bxc3 {[%clk 0:02:49]}  Bf6 {[%clk 0:02:55]} 11. Be2 {[%clk 0:02:39]}  Nd7 {[%clk 0:02:54]} 12. O-O {[%clk 0:02:30]}  c5 {[%clk 0:02:54]} 13. Rfd1 {[%clk 0:02:25]}  Rc8 {[%clk 0:02:52]} 14. b4 {[%clk 0:02:20]}  Bxc3 {[%clk 0:02:49]} 15. dxc3 {[%clk 0:02:18]}  Qc7 {[%clk 0:02:35]} 16. Qa4 {[%clk 0:01:58]}  Bc6 {[%clk 0:02:35]} 17. b5 {[%clk 0:01:55]}  Ba8 {[%clk 0:02:33]} 18. Qf4 {[%clk 0:01:30]}  Nf6 {[%clk 0:02:22]} 19. Qxc7 {[%clk 0:01:28]}  Rxc7 {[%clk 0:02:22]} 20. c4 {[%clk 0:01:10]}  Rcc8 {[%clk 0:02:20]} 21. Ne5 {[%clk 0:01:08]}  Rfd8 {[%clk 0:02:19]} 22. f3 {[%clk 0:01:04]}  Kf8 {[%clk 0:02:18]} 23. a4 {[%clk 0:01:01]}  Ke7 {[%clk 0:02:13]} 24. Rxd8 {[%clk 0:00:52]}  Rxd8 {[%clk 0:02:11]} 25. a5 {[%clk 0:00:53]}  Nd7 {[%clk 0:01:48]} 26. axb6 {[%clk 0:00:27]}  Nxe5 {[%clk 0:01:47]} 27. Rxa7+ {[%clk 0:00:28]}  Kf6 {[%clk 0:01:35]} 28. f4 {[%clk 0:00:22]}  Ng6 {[%clk 0:01:32]} 29. b7 {[%clk 0:00:22]}  Bxb7 {[%clk 0:01:32]} 30. Rxb7 {[%clk 0:00:23]}  Nh4 {[%clk 0:01:28]} 31. Rc7 {[%clk 0:00:20]}  Rd2 {[%clk 0:01:28]} 32. Kf2 {[%clk 0:00:17]}  Nf5 {[%clk 0:01:27]} 33. Rxc5 {[%clk 0:00:16]}  Nd6 {[%clk 0:01:27]} 34. Kf3 {[%clk 0:00:17]}  Rc2 {[%clk 0:01:21]} 35. b6 {[%clk 0:00:13]}  Rb2 {[%clk 0:01:21]} 36. Rc6 {[%clk 0:00:13]}  Nf5 {[%clk 0:01:22]} 37. c5 {[%clk 0:00:13]}  Rb3 {[%clk 0:01:22]} 38. Kf2 {[%clk 0:00:08]}  Nxe3 {[%clk 0:01:19]} 39. b7 {[%clk 0:00:08]}  Nd5 {[%clk 0:01:17]} 40. Rb6 {[%clk 0:00:09]}  Nxb6 {[%clk 0:01:08]} 41. b8=Q {[%clk 0:00:09]} 1-0


[Site "https://www.chess.com"]

[Event "Titled Tuesday Blitz March 21 Early 2023"]
[White "Villalba, Marcelo"]
[Black "Harsha Bharathakoti"]
[WhiteFideId "3701859"]
[BlackFideId "5078776"]
[WhiteElo "2191"]
[BlackElo "2481"]
[Result "0-1"]
[Round "08"]
[TimeControl "180+2"]
[Date "2023.03.21"]
[WhiteClock "0:00:02"]
[BlackClock "0:00:09"]

1. e4 {[%clk 0:03:00]}  e6 {[%clk 0:02:55]} 2. Qe2 {[%clk 0:02:57]}  Nc6 {[%clk 0:02:48]} 3. Nf3 {[%clk 0:02:57]}  e5 {[%clk 0:02:49]} 4. g3 {[%clk 0:02:38]}  Bc5 {[%clk 0:02:48]} 5. Bg2 {[%clk 0:02:38]}  d6 {[%clk 0:02:49]} 6. h3 {[%clk 0:02:36]}  Nge7 {[%clk 0:02:42]} 7. O-O {[%clk 0:02:35]}  O-O {[%clk 0:02:42]} 8. Nc3 {[%clk 0:02:28]}  a6 {[%clk 0:02:40]} 9. d3 {[%clk 0:02:27]}  f5 {[%clk 0:02:40]} 10. Nd5 {[%clk 0:02:08]}  fxe4 {[%clk 0:02:16]} 11. dxe4 {[%clk 0:02:07]}  Nxd5 {[%clk 0:02:12]} 12. exd5 {[%clk 0:02:06]}  Ne7 {[%clk 0:02:12]} 13. c4 {[%clk 0:02:01]}  Nf5 {[%clk 0:02:06]} 14. Kh2 {[%clk 0:01:43]}  Bd7 {[%clk 0:02:00]} 15. g4 {[%clk 0:01:41]}  Ne7 {[%clk 0:01:59]} 16. Be3 {[%clk 0:01:40]}  b6 {[%clk 0:01:51]} 17. Ng5 {[%clk 0:01:35]}  Ng6 {[%clk 0:01:50]} 18. Be4 {[%clk 0:01:21]}  Nf4 {[%clk 0:01:11]} 19. Bxf4 {[%clk 0:01:03]}  Rxf4 {[%clk 0:01:11]} 20. Bxh7+ {[%clk 0:00:32]}  Kh8 {[%clk 0:01:05]} 21. h4 {[%clk 0:00:23]}  Bxg4 {[%clk 0:00:36]} 22. Qd2 {[%clk 0:00:17]}  Qf6 {[%clk 0:00:32]} 23. Kg3 {[%clk 0:00:15]}  Bd7 {[%clk 0:00:10]} 24. Be4 {[%clk 0:00:11]}  Rg4+ {[%clk 0:00:07]} 25. Kh2 {[%clk 0:00:04]}  Rxh4+ {[%clk 0:00:07]} 26. Kg3 {[%clk 0:00:04]}  Rg4+ {[%clk 0:00:08]} 27. Kh2 {[%clk 0:00:03]}  Qh6+ {[%clk 0:00:08]} 28. Nh3 {[%clk 0:00:02]}  Qxd2 {[%clk 0:00:09]} 0-1


[Site "https://www.chess.com"]

[Event "Titled Tuesday Blitz March 21 Early 2023"]
[White "Petukhov, Dmitry"]
[Black "Aditya Mittal"]
[WhiteFideId "4142748"]
[BlackFideId "35042025"]
[WhiteElo "2311"]
[BlackElo "2396"]
[Result "1/2-1/2"]
[Round "08"]
[TimeControl "180+2"]
[Date "2023.03.21"]
[WhiteClock "0:00:12"]
[BlackClock "0:00:05"]

1. e4 {[%clk 0:03:00]}  c5 {[%clk 0:03:00]} 2. c3 {[%clk 0:02:59]}  d5 {[%clk 0:02:56]} 3. exd5 {[%clk 0:02:59]}  Qxd5 {[%clk 0:02:57]} 4. d4 {[%clk 0:02:57]}  Nf6 {[%clk 0:02:58]} 5. Nf3 {[%clk 0:02:56]}  e6 {[%clk 0:02:58]} 6. Be2 {[%clk 0:02:56]}  Nc6 {[%clk 0:02:56]} 7. O-O {[%clk 0:02:56]}  Be7 {[%clk 0:02:54]} 8. Be3 {[%clk 0:02:55]}  cxd4 {[%clk 0:02:53]} 9. cxd4 {[%clk 0:02:54]}  O-O {[%clk 0:02:54]} 10. Nc3 {[%clk 0:02:55]}  Qd6 {[%clk 0:02:54]} 11. Qb3 {[%clk 0:02:53]}  b6 {[%clk 0:02:51]} 12. Rfd1 {[%clk 0:02:51]}  Bb7 {[%clk 0:02:50]} 13. Rac1 {[%clk 0:02:44]}  Rac8 {[%clk 0:02:49]} 14. a3 {[%clk 0:02:25]}  Rfd8 {[%clk 0:02:46]} 15. Qa2 {[%clk 0:02:18]}  Qb8 {[%clk 0:02:37]} 16. h3 {[%clk 0:02:18]}  h6 {[%clk 0:02:25]} 17. d5 {[%clk 0:02:15]}  exd5 {[%clk 0:02:14]} 18. Nxd5 {[%clk 0:02:16]}  Rxd5 {[%clk 0:01:55]} 19. Rxd5 {[%clk 0:02:17]}  Nb4 {[%clk 0:01:56]} 20. Rxc8+ {[%clk 0:01:54]}  Qxc8 {[%clk 0:01:57]} 21. axb4 {[%clk 0:01:53]}  Nxd5 {[%clk 0:01:57]} 22. Bd2 {[%clk 0:01:51]}  Bxb4 {[%clk 0:01:09]} 23. Bxb4 {[%clk 0:01:46]}  Nxb4 {[%clk 0:01:10]} 24. Qxa7 {[%clk 0:01:47]}  Qc1+ {[%clk 0:01:00]} 25. Kh2 {[%clk 0:01:46]}  Qc7+ {[%clk 0:00:20]} 26. Kh1 {[%clk 0:01:37]}  Nc6 {[%clk 0:00:18]} 27. Qa4 {[%clk 0:01:33]}  Qe7 {[%clk 0:00:16]} 28. Bf1 {[%clk 0:01:27]}  Qd7 {[%clk 0:00:05]} 29. Qb5 {[%clk 0:01:26]}  Qc7 {[%clk 0:00:03]} 30. Kg1 {[%clk 0:01:22]}  Na7 {[%clk 0:00:03]} 31. Qe8+ {[%clk 0:01:17]}  Kh7 {[%clk 0:00:02]} 32. Ne5 {[%clk 0:01:16]}  Bd5 {[%clk 0:00:02]} 33. Bd3+ {[%clk 0:01:11]}  g6 {[%clk 0:00:02]} 34. Nxg6 {[%clk 0:01:08]}  Qc1+ {[%clk 0:00:02]} 35. Kh2 {[%clk 0:01:06]}  Qc7+ {[%clk 0:00:02]} 36. g3 {[%clk 0:01:04]}  fxg6 {[%clk 0:00:02]} 37. Qxg6+ {[%clk 0:00:58]}  Kh8 {[%clk 0:00:03]} 38. Qxh6+ {[%clk 0:00:58]}  Kg8 {[%clk 0:00:03]} 39. Qg5+ {[%clk 0:00:58]}  Kf8 {[%clk 0:00:02]} 40. Qxd5 {[%clk 0:00:57]}  Nc6 {[%clk 0:00:03]} 41. Qc4 {[%clk 0:00:56]}  Qd6 {[%clk 0:00:02]} 42. Qf4+ {[%clk 0:00:54]}  Qxf4 {[%clk 0:00:02]} 43. gxf4 {[%clk 0:00:55]}  Ke7 {[%clk 0:00:02]} 44. h4 {[%clk 0:00:55]}  Kf6 {[%clk 0:00:03]} 45. h5 {[%clk 0:00:55]}  Ne7 {[%clk 0:00:02]} 46. h6 {[%clk 0:00:55]}  Nd5 {[%clk 0:00:01]} 47. Kg3 {[%clk 0:00:54]}  Nb4 {[%clk 0:00:02]} 48. Be4 {[%clk 0:00:54]}  Na6 {[%clk 0:00:02]} 49. h7 {[%clk 0:00:54]}  Kg7 {[%clk 0:00:01]} 50. Kf3 {[%clk 0:00:54]}  Nc5 {[%clk 0:00:02]} 51. Bf5 {[%clk 0:00:54]}  Na4 {[%clk 0:00:02]} 52. b3 {[%clk 0:00:52]}  Nc5 {[%clk 0:00:02]} 53. Bc2 {[%clk 0:00:53]}  b5 {[%clk 0:00:02]} 54. Ke3 {[%clk 0:00:53]}  Ne6 {[%clk 0:00:02]} 55. Kd3 {[%clk 0:00:47]}  Nxf4+ {[%clk 0:00:02]} 56. Kd4 {[%clk 0:00:47]}  Nh3 {[%clk 0:00:02]} 57. Ke3 {[%clk 0:00:41]}  Ng5 {[%clk 0:00:02]} 58. b4 {[%clk 0:00:39]}  Ne6 {[%clk 0:00:03]} 59. Bd3 {[%clk 0:00:38]}  Nc7 {[%clk 0:00:03]} 60. Kd4 {[%clk 0:00:37]}  Na6 {[%clk 0:00:03]} 61. Kc3 {[%clk 0:00:37]}  Nc7 {[%clk 0:00:04]} 62. f3 {[%clk 0:00:36]}  Nd5+ {[%clk 0:00:04]} 63. Kb3 {[%clk 0:00:35]}  Nc7 {[%clk 0:00:05]} 64. Be4 {[%clk 0:00:33]}  Ne6 {[%clk 0:00:05]} 65. Kc3 {[%clk 0:00:33]}  Nc7 {[%clk 0:00:05]} 66. f4 {[%clk 0:00:27]}  Kh8 {[%clk 0:00:06]} 67. Bd3 {[%clk 0:00:23]}  Kg7 {[%clk 0:00:06]} 68. Kd4 {[%clk 0:00:23]}  Na6 {[%clk 0:00:06]} 69. Ke5 {[%clk 0:00:16]}  Nxb4 {[%clk 0:00:06]} 70. Bxb5 {[%clk 0:00:16]}  Kxh7 {[%clk 0:00:06]} 71. Kd4 {[%clk 0:00:15]}  Nc2+ {[%clk 0:00:05]} 72. Kd3 {[%clk 0:00:14]}  Ne1+ {[%clk 0:00:04]} 73. Ke2 {[%clk 0:00:14]}  Ng2 {[%clk 0:00:04]} 74. f5 {[%clk 0:00:14]}  Nh4 {[%clk 0:00:05]} 75. Ke3 {[%clk 0:00:12]}  Nxf5+ {[%clk 0:00:05]} 1/2-1/2


[Site "https://www.chess.com"]

[Event "Titled Tuesday Blitz March 21 Early 2023"]
[White "Guzman Moneo, Alberto"]
[Black "Urazayev, Arystanbek"]
[WhiteFideId "2209616"]
[BlackFideId "13709810"]
[WhiteElo "2157"]
[BlackElo "2479"]
[Result "0-1"]
[Round "08"]
[TimeControl "180+2"]
[Date "2023.03.21"]
[WhiteClock "0:01:19"]
[BlackClock "0:02:02"]

1. e4 {[%clk 0:03:00]}  e5 {[%clk 0:02:59]} 2. Nf3 {[%clk 0:03:00]}  Nc6 {[%clk 0:02:59]} 3. Bc4 {[%clk 0:03:00]}  Nf6 {[%clk 0:02:59]} 4. Ng5 {[%clk 0:03:00]}  d5 {[%clk 0:02:55]} 5. exd5 {[%clk 0:02:59]}  b5 {[%clk 0:02:56]} 6. Bf1 {[%clk 0:02:58]}  Nxd5 {[%clk 0:02:56]} 7. Bxb5 {[%clk 0:02:53]}  Bb7 {[%clk 0:02:56]} 8. d4 {[%clk 0:02:52]}  Be7 {[%clk 0:02:49]} 9. Qh5 {[%clk 0:02:03]}  g6 {[%clk 0:02:48]} 10. Qh6 {[%clk 0:01:58]}  Qd7 {[%clk 0:02:45]} 11. Qg7 {[%clk 0:01:51]}  O-O-O {[%clk 0:02:44]} 12. Qxf7 {[%clk 0:01:37]}  Kb8 {[%clk 0:02:03]} 13. Ne6 {[%clk 0:01:19]}  Bb4+ {[%clk 0:02:02]} 0-1


[Site "https://www.chess.com"]

[Event "Titled Tuesday Blitz March 21 Early 2023"]
[White "Al-Tarboush, Ward"]
[Black "Nogerbek, Kazybek"]
[WhiteFideId "7601450"]
[BlackFideId "13710427"]
[WhiteElo "2257"]
[BlackElo "2501"]
[Result "0-1"]
[Round "08"]
[TimeControl "180+2"]
[Date "2023.03.21"]
[WhiteClock "0:00:06"]
[BlackClock "0:00:14"]

1. e4 {[%clk 0:03:00]}  g6 {[%clk 0:02:58]} 2. d4 {[%clk 0:02:58]}  Nf6 {[%clk 0:02:59]} 3. e5 {[%clk 0:02:58]}  Nh5 {[%clk 0:02:59]} 4. g4 {[%clk 0:02:56]}  Ng7 {[%clk 0:02:59]} 5. Bc4 {[%clk 0:02:53]}  d6 {[%clk 0:02:59]} 6. f4 {[%clk 0:02:40]}  h5 {[%clk 0:02:58]} 7. g5 {[%clk 0:02:36]}  Bg4 {[%clk 0:02:43]} 8. Qd3 {[%clk 0:02:35]}  e6 {[%clk 0:02:41]} 9. Nc3 {[%clk 0:02:14]}  d5 {[%clk 0:02:39]} 10. Bb3 {[%clk 0:02:15]}  a6 {[%clk 0:02:36]} 11. Be3 {[%clk 0:02:13]}  Nd7 {[%clk 0:02:22]} 12. Nge2 {[%clk 0:02:05]}  b6 {[%clk 0:02:15]} 13. O-O-O {[%clk 0:01:58]}  Be7 {[%clk 0:02:02]} 14. h3 {[%clk 0:01:50]}  Bf5 {[%clk 0:01:51]} 15. Qd2 {[%clk 0:01:50]}  b5 {[%clk 0:01:50]} 16. Ng3 {[%clk 0:01:48]}  a5 {[%clk 0:01:47]} 17. a4 {[%clk 0:01:34]}  b4 {[%clk 0:01:47]} 18. Nce2 {[%clk 0:01:33]}  c5 {[%clk 0:01:48]} 19. dxc5 {[%clk 0:01:31]}  Nxc5 {[%clk 0:01:42]} 20. Bxc5 {[%clk 0:01:26]}  Bxc5 {[%clk 0:01:42]} 21. Nd4 {[%clk 0:01:26]}  Qb6 {[%clk 0:01:40]} 22. Ngxf5 {[%clk 0:01:25]}  Nxf5 {[%clk 0:01:41]} 23. Nxf5 {[%clk 0:01:25]}  gxf5 {[%clk 0:01:42]} 24. Kb1 {[%clk 0:01:25]}  Be3 {[%clk 0:01:36]} 25. Qe2 {[%clk 0:01:14]}  Bxf4 {[%clk 0:01:33]} 26. h4 {[%clk 0:01:04]}  Rc8 {[%clk 0:01:30]} 27. Rhf1 {[%clk 0:00:59]}  Be3 {[%clk 0:01:27]} 28. Rf3 {[%clk 0:00:55]}  f4 {[%clk 0:01:21]} 29. Qd3 {[%clk 0:00:53]}  Ke7 {[%clk 0:01:13]} 30. g6 {[%clk 0:00:53]}  fxg6 {[%clk 0:01:14]} 31. Qxg6 {[%clk 0:00:54]}  Rhf8 {[%clk 0:01:04]} 32. Qg5+ {[%clk 0:00:52]}  Kd7 {[%clk 0:01:00]} 33. Qxh5 {[%clk 0:00:53]}  Kc7 {[%clk 0:00:57]} 34. Qh7+ {[%clk 0:00:45]}  Kb8 {[%clk 0:00:57]} 35. h5 {[%clk 0:00:46]}  Qc7 {[%clk 0:00:55]} 36. Qd3 {[%clk 0:00:42]}  Rh8 {[%clk 0:00:53]} 37. Rh1 {[%clk 0:00:41]}  Rh6 {[%clk 0:00:49]} 38. Qb5+ {[%clk 0:00:40]}  Qb6 {[%clk 0:00:47]} 39. Qd7 {[%clk 0:00:36]}  Rc7 {[%clk 0:00:43]} 40. Qd8+ {[%clk 0:00:35]}  Ka7 {[%clk 0:00:42]} 41. Rh2 {[%clk 0:00:31]}  Rg7 {[%clk 0:00:36]} 42. Qf8 {[%clk 0:00:28]}  Qc7 {[%clk 0:00:33]} 43. Rf1 {[%clk 0:00:21]}  Rgh7 {[%clk 0:00:25]} 44. Rg2 {[%clk 0:00:19]}  Rh8 {[%clk 0:00:17]} 45. Qd6 {[%clk 0:00:17]}  Qxd6 {[%clk 0:00:17]} 46. exd6 {[%clk 0:00:18]}  Kb6 {[%clk 0:00:15]} 47. Rg7 {[%clk 0:00:06]}  R8h7 {[%clk 0:00:16]} 48. Rg6 {[%clk 0:00:06]}  Rxg6 {[%clk 0:00:15]} 49. hxg6 {[%clk 0:00:07]}  Rg7 {[%clk 0:00:16]} 50. c4 {[%clk 0:00:05]}  bxc3 {[%clk 0:00:15]} 51. Bc2 {[%clk 0:00:05]}  cxb2 {[%clk 0:00:14]} 52. Rh1 {[%clk 0:00:05]}  Kc6 {[%clk 0:00:13]} 53. Rh7 {[%clk 0:00:05]}  Rxh7 {[%clk 0:00:13]} 54. gxh7 {[%clk 0:00:06]}  Bd4 {[%clk 0:00:14]} 0-1


[Site "https://www.chess.com"]

[Event "Titled Tuesday Blitz March 21 Early 2023"]
[White "Filgueira, Hernan"]
[Black "Averjanov, Alexey"]
[WhiteFideId "101770"]
[BlackFideId "14109867"]
[WhiteElo "2363"]
[BlackElo "2814"]
[Result "0-1"]
[Round "08"]
[TimeControl "180+2"]
[Date "2023.03.21"]
[WhiteClock "0:00:07"]
[BlackClock "0:00:02"]

1. c4 {[%clk 0:02:59]}  c5 {[%clk 0:02:59]} 2. Nf3 {[%clk 0:02:58]}  Nc6 {[%clk 0:02:59]} 3. Nc3 {[%clk 0:02:58]}  g6 {[%clk 0:02:59]} 4. e3 {[%clk 0:02:58]}  Nf6 {[%clk 0:02:58]} 5. d4 {[%clk 0:02:58]}  cxd4 {[%clk 0:02:58]} 6. exd4 {[%clk 0:02:59]}  d5 {[%clk 0:02:57]} 7. cxd5 {[%clk 0:02:59]}  Nxd5 {[%clk 0:02:58]} 8. Bc4 {[%clk 0:03:00]}  Nxc3 {[%clk 0:02:58]} 9. bxc3 {[%clk 0:03:00]}  e6 {[%clk 0:02:56]} 10. O-O {[%clk 0:02:58]}  Bg7 {[%clk 0:02:56]} 11. Bg5 {[%clk 0:02:50]}  Qd6 {[%clk 0:02:52]} 12. Qd2 {[%clk 0:02:46]}  O-O {[%clk 0:02:51]} 13. Bh6 {[%clk 0:02:46]}  b6 {[%clk 0:02:50]} 14. Bxg7 {[%clk 0:02:46]}  Kxg7 {[%clk 0:02:51]} 15. Bb5 {[%clk 0:02:29]}  Bb7 {[%clk 0:02:50]} 16. Bxc6 {[%clk 0:02:25]}  Qxc6 {[%clk 0:02:46]} 17. Rfe1 {[%clk 0:02:23]}  Rac8 {[%clk 0:02:43]} 18. Rac1 {[%clk 0:02:22]}  Rfd8 {[%clk 0:02:39]} 19. Qg5 {[%clk 0:02:18]}  Rd5 {[%clk 0:02:33]} 20. Qg3 {[%clk 0:02:18]}  Qd6 {[%clk 0:02:25]} 21. Qg4 {[%clk 0:01:53]}  Ra5 {[%clk 0:02:14]} 22. Ne5 {[%clk 0:01:47]}  Rxa2 {[%clk 0:02:05]} 23. Qh4 {[%clk 0:01:41]}  Qd8 {[%clk 0:01:53]} 24. Qg3 {[%clk 0:01:37]}  Ra3 {[%clk 0:01:45]} 25. h4 {[%clk 0:01:35]}  h5 {[%clk 0:01:41]} 26. Re3 {[%clk 0:01:32]}  Qe8 {[%clk 0:01:21]} 27. Qf4 {[%clk 0:01:27]}  Qe7 {[%clk 0:01:16]} 28. Rg3 {[%clk 0:01:24]}  Rc7 {[%clk 0:01:06]} 29. c4 {[%clk 0:00:50]}  Rxg3 {[%clk 0:01:02]} 30. fxg3 {[%clk 0:00:50]}  b5 {[%clk 0:00:49]} 31. c5 {[%clk 0:00:49]}  Bd5 {[%clk 0:00:48]} 32. Rf1 {[%clk 0:00:46]}  b4 {[%clk 0:00:44]} 33. Qd2 {[%clk 0:00:43]}  f6 {[%clk 0:00:39]} 34. Nd3 {[%clk 0:00:42]}  b3 {[%clk 0:00:37]} 35. Nf4 {[%clk 0:00:41]}  Be4 {[%clk 0:00:28]} 36. Re1 {[%clk 0:00:39]}  f5 {[%clk 0:00:24]} 37. Qc3 {[%clk 0:00:37]}  Qf6 {[%clk 0:00:19]} 38. Qxb3 {[%clk 0:00:30]}  Qxd4+ {[%clk 0:00:18]} 39. Kh2 {[%clk 0:00:31]}  Bd5 {[%clk 0:00:08]} 40. Qb8 {[%clk 0:00:18]}  Rf7 {[%clk 0:00:07]} 41. c6 {[%clk 0:00:16]}  Qc4 {[%clk 0:00:04]} 42. Qe5+ {[%clk 0:00:13]}  Kh7 {[%clk 0:00:04]} 43. Nh3 {[%clk 0:00:13]}  Kg8 {[%clk 0:00:04]} 44. Ng5 {[%clk 0:00:13]}  Qxc6 {[%clk 0:00:04]} 45. Nxf7 {[%clk 0:00:12]}  Kxf7 {[%clk 0:00:04]} 46. Rb1 {[%clk 0:00:12]}  Bxg2 {[%clk 0:00:04]} 47. Ra1 {[%clk 0:00:12]}  a6 {[%clk 0:00:04]} 48. Ra2 {[%clk 0:00:10]}  Bd5 {[%clk 0:00:03]} 49. Rb2 {[%clk 0:00:10]}  Qc1 {[%clk 0:00:03]} 50. Qc7+ {[%clk 0:00:07]}  Qxc7 {[%clk 0:00:02]} 0-1


[Site "https://www.chess.com"]

[Event "Titled Tuesday Blitz March 21 Early 2023"]
[White "Orlov, Georgi"]
[Black "Mikhailovsky, Vladimir"]
[WhiteFideId "2011271"]
[BlackFideId "34105414"]
[WhiteElo "2621"]
[BlackElo "2293"]
[Result "1/2-1/2"]
[Round "08"]
[TimeControl "180+2"]
[Date "2023.03.21"]
[WhiteClock "0:00:01"]
[BlackClock "0:00:02"]

1. d4 {[%clk 0:02:56]}  d6 {[%clk 0:02:58]} 2. e4 {[%clk 0:02:55]}  Nf6 {[%clk 0:02:58]} 3. Nc3 {[%clk 0:02:54]}  Nbd7 {[%clk 0:02:58]} 4. f4 {[%clk 0:02:50]}  e5 {[%clk 0:02:56]} 5. Nf3 {[%clk 0:02:46]}  exd4 {[%clk 0:02:40]} 6. Qxd4 {[%clk 0:02:34]}  c6 {[%clk 0:02:40]} 7. Bd3 {[%clk 0:02:27]}  d5 {[%clk 0:02:39]} 8. Qe3 {[%clk 0:02:19]}  Bc5 {[%clk 0:02:21]} 9. Qe2 {[%clk 0:02:15]}  dxe4 {[%clk 0:02:21]} 10. Nxe4 {[%clk 0:02:14]}  O-O {[%clk 0:02:21]} 11. Nxf6+ {[%clk 0:01:29]}  Nxf6 {[%clk 0:02:20]} 12. Ne5 {[%clk 0:01:28]}  Re8 {[%clk 0:02:10]} 13. Be3 {[%clk 0:01:27]}  Bxe3 {[%clk 0:01:55]} 14. Qxe3 {[%clk 0:01:26]}  Ng4 {[%clk 0:01:53]} 15. Qe4 {[%clk 0:01:23]}  g6 {[%clk 0:01:09]} 16. O-O-O {[%clk 0:01:18]}  Nf2 {[%clk 0:00:38]} 17. Qf3 {[%clk 0:00:58]}  Nxd1 {[%clk 0:00:37]} 18. Rxd1 {[%clk 0:00:57]}  Qf6 {[%clk 0:00:37]} 19. Bc4 {[%clk 0:00:41]}  Be6 {[%clk 0:00:36]} 20. Bxe6 {[%clk 0:00:41]}  Qxe6 {[%clk 0:00:35]} 21. b3 {[%clk 0:00:37]}  Rad8 {[%clk 0:00:32]} 22. Rxd8 {[%clk 0:00:35]}  Rxd8 {[%clk 0:00:33]} 23. Qc3 {[%clk 0:00:32]}  Qd6 {[%clk 0:00:24]} 24. Nd3 {[%clk 0:00:30]}  b6 {[%clk 0:00:22]} 25. Kb1 {[%clk 0:00:27]}  c5 {[%clk 0:00:22]} 26. Qc4 {[%clk 0:00:25]}  Qd4 {[%clk 0:00:22]} 27. Qa6 {[%clk 0:00:24]}  Re8 {[%clk 0:00:18]} 28. Qxa7 {[%clk 0:00:20]}  c4 {[%clk 0:00:18]} 29. bxc4 {[%clk 0:00:19]}  Qxc4 {[%clk 0:00:19]} 30. Qxb6 {[%clk 0:00:18]}  Qd5 {[%clk 0:00:16]} 31. g3 {[%clk 0:00:17]}  Ra8 {[%clk 0:00:16]} 32. Qb3 {[%clk 0:00:16]}  Qd6 {[%clk 0:00:15]} 33. Kc1 {[%clk 0:00:13]}  Rb8 {[%clk 0:00:14]} 34. Qc4 {[%clk 0:00:13]}  Qa3+ {[%clk 0:00:14]} 35. Kd2 {[%clk 0:00:13]}  Qa5+ {[%clk 0:00:15]} 36. Qc3 {[%clk 0:00:12]}  Qh5 {[%clk 0:00:14]} 37. h4 {[%clk 0:00:11]}  Qf3 {[%clk 0:00:14]} 38. Qe5 {[%clk 0:00:10]}  Rc8 {[%clk 0:00:13]} 39. Qe3 {[%clk 0:00:10]}  Qg2+ {[%clk 0:00:13]} 40. Ke1 {[%clk 0:00:08]}  Qxc2 {[%clk 0:00:13]} 41. Ne5 {[%clk 0:00:05]}  Qxa2 {[%clk 0:00:13]} 42. Ng4 {[%clk 0:00:04]}  Rb8 {[%clk 0:00:13]} 43. Nh6+ {[%clk 0:00:03]}  Kg7 {[%clk 0:00:10]} 44. Qe5+ {[%clk 0:00:03]}  Kxh6 {[%clk 0:00:10]} 45. Qxb8 {[%clk 0:00:03]}  Qg2 {[%clk 0:00:08]} 46. Qf8+ {[%clk 0:00:02]}  Kh5 {[%clk 0:00:08]} 47. Qxf7 {[%clk 0:00:02]}  Qxg3+ {[%clk 0:00:07]} 48. Ke2 {[%clk 0:00:03]}  Qh2+ {[%clk 0:00:06]} 49. Ke3 {[%clk 0:00:03]}  Qh3+ {[%clk 0:00:06]} 50. Ke4 {[%clk 0:00:02]}  Qg2+ {[%clk 0:00:06]} 51. Ke5 {[%clk 0:00:03]}  Qe2+ {[%clk 0:00:06]} 52. Kf6 {[%clk 0:00:03]}  Qb2+ {[%clk 0:00:04]} 53. Ke7 {[%clk 0:00:01]}  Qb7+ {[%clk 0:00:04]} 54. Kf8 {[%clk 0:00:01]}  Qxf7+ {[%clk 0:00:03]} 55. Kxf7 {[%clk 0:00:01]}  Kxh4 {[%clk 0:00:03]} 56. Kg7 {[%clk 0:00:02]}  Kg4 {[%clk 0:00:01]} 57. Kxh7 {[%clk 0:00:02]}  g5 {[%clk 0:00:02]} 58. fxg5 {[%clk 0:00:01]}  Kxg5 {[%clk 0:00:02]} 1/2-1/2


[Site "https://www.chess.com"]